[Event "European Women Blitz-ch 2024"]
[Site "Monaco"]
[Date "2025.01.10"]
[Round "1.14"]
[White "Bellaiche, Elise"]
[Black "Roebers, Eline"]
[Result "0-1"]
[Annotator "TA"]
[ECO "B22"]
[WhiteElo "2021"]
[BlackElo "2381"]
[PlyCount "55"]
[EventDate "2025.01.06"]
[EventType "swiss"]
[EventCountry "MNC"]
[SourceTitle "playchess.com"]
[Source "ChessBase"]
[SourceQuality "1"]
[TimeControl "180+2"]

{[%evp 17,55,0,4,-18,-15,-25,-18,-27,-12,-73,-42,-39,-11,-43,0,-26,-40,-48,-44,-81,-73,-75,-67,-65,-59,-73,32,-89,-86,-120,-119,-542,-541,-552,-225,-219,-93,-101,-83,-395]} 1. e4 {[%emt 0:00:01]} c5 {[%emt 0:00:00]} 2. Nf3 {[%emt 0:00:02]} Nc6 {[%emt 0:00:01]} 3. c3 {[%emt 0:00:01]} Nf6 {[%emt 0:00:05]} 4. e5 {[%emt 0:00:00]} Nd5 {[%emt 0:00:01]} 5. d4 {[%emt 0:00:01]} cxd4 {[%emt 0:00:01]} 6. cxd4 {[%emt 0:00:07]} e6 {[%emt 0:00:00]} 7. Bc4 {[%emt 0:00:02]} d6 {[%emt 0:00:06]} 8. O-O {[%emt 0:00:11]} Be7 {[%emt 0:00:01]} 9. Bxd5 {[%emt 0:00:16]} exd5 {[%emt 0:00:02]} 10. exd6 {[%emt 0:00:00]} Qxd6 {[%emt 0:00:05]} 11. h3 {[%emt 0:00:08] Against Bg4} O-O {[%emt 0:00:02]} 12. Nc3 {[%emt 0:00:00]} Bf5 {[%emt 0:00:05]} 13. Qb3 {[%emt 0:00:53]} (13. Ne5 $11 {remains equal.}) 13... Rfd8 {[%emt 0:00:01]} 14. Re1 {[%emt 0:00:40]} Bf6 {[%emt 0:00:07]} 15. Be3 {[%emt 0:00:13]} Na5 {[%emt 0:00:15]} 16. Qd1 {[%emt 0:00:17]} Nc4 {[%emt 0:00:02]} 17. Qe2 {[%emt 0:00:03]} Re8 {[%emt 0:00:03]} 18. b3 {[%emt 0:00:07]} Nxe3 {[%emt 0:00:04]} 19. fxe3 {[%emt 0:00:03]} Rac8 {[%emt 0:00:01]} 20. Rac1 {[%emt 0:00:13][%cal Oe3e4,Ba1c1,Bc1c3,Bc3d3,Bd3d5][%mdl 32]} a6 {[%emt 0:00:04] Black is much more active.} 21. Qd2 {[%emt 0:00:07]} Re7 {[%emt 0:00:19]} (21... Bd8 $17 22. Ne2 Rxc1 23. Rxc1 Bc7) 22. Na4 {[%emt 0:00:17]} (22. e4 $1 $14 {keeps the upper hand.} dxe4 23. Nxe4) 22... Rce8 $17 {[%emt 0:00:02]} 23. Rc3 {[%emt 0:00:02]} Be4 {[%emt 0:00:06]} 24. Qf2 $2 {[%emt 0:00:03][%mdl 8192]} (24. Rf1 $17) 24... Bxf3 $19 {[%emt 0:00:10]} 25. Qxf3 {[%emt 0:00:01]} Bxd4 {[%emt 0:00:02]} (25... b5 $142 26. Rec1 bxa4) 26. Rd3 {[%emt 0:00:02]} Bf6 {[%emt 0:00:31]} (26... Ba7 $19 {and Black stays clearly on top. Threatens to win with ...Bb8.} 27. Nc3 d4) 27. Rxd5 $17 {[%emt 0:00:02]} Qb4 {[%emt 0:00:01]} 28. Red1 $2 {[%emt 0:00:06][%mdl 8192]} (28. Re2 $17) 0-1

[Event "European Women Blitz-ch 2024"]
[Site "Monaco"]
[Date "2025.01.10"]
[Round "1.15"]
[White "Injac, Teodora"]
[Black "Birkholz, Olga"]
[Result "1-0"]
[Annotator "TA"]
[ECO "E68"]
[WhiteElo "2453"]
[BlackElo "2018"]
[PlyCount "63"]
[EventDate "2025.01.06"]
[EventType "swiss"]
[EventCountry "MNC"]
[SourceTitle "playchess.com"]
[Source "ChessBase"]
[SourceQuality "1"]
[TimeControl "180+2"]

{[%evp 19,62,33,43,52,50,34,69,25,44,8,28,38,46,36,38,31,55,45,60,-13,89,75,89,56,111,126,108,120,162,152,1083,1052,1221,1208,29996,1683,2048,1726,2114,2163,29979,9363,29988,29986,29999]} 1. d4 {[%emt 0:00:01]} Nf6 {[%emt 0:00:01]} 2. Nf3 {[%emt 0:00:02]} g6 {[%emt 0:00:01]} 3. g3 {[%emt 0:00:06]} Bg7 {[%emt 0:00:00]} 4. Bg2 {[%emt 0:00:01]} O-O {[%emt 0:00:02]} 5. O-O {[%emt 0:00:02]} d6 {[%emt 0:00:01]} 6. c4 {[%emt 0:00:03]} Nbd7 {[%emt 0:00:13]} 7. Nc3 {[%emt 0:00:02]} e5 {[%emt 0:00:02]} 8. e4 {[%emt 0:00:01]} Re8 {[%emt 0:00:09]} 9. h3 {[%emt 0:00:02]} exd4 {[%emt 0:00:11]} 10. Nxd4 {[%emt 0:00:01]} Ne5 {[%emt 0:00:01]} 11. b3 {[%emt 0:00:13]} a6 {[%emt 0:00:14]} 12. Be3 {[%emt 0:00:10]} Bd7 {[%emt 0:00:07]} 13. a4 {[%emt 0:00:32]} Rb8 {[%emt 0:00:07]} 14. a5 {[%emt 0:00:16]} Qc8 {[%emt 0:00:17]} 15. Kh2 {[%emt 0:00:06]} h5 {[%emt 0:00:13][%cal Oh5h4]} 16. Bg5 {[%emt 0:00:50]} Nh7 {[%emt 0:00:14]} 17. Bf4 {[%emt 0:00:01]} Nf6 {[%emt 0:00:14][%cal Oh5h4]} 18. f3 {[%emt 0:00:15]} Nc6 {[%emt 0:00:07] ...Nxd4 would now be deadly.} 19. Be3 {[%emt 0:00:07]} ({White should play} 19. Nde2 $1 $14) 19... Ne5 {[%emt 0:00:04]} (19... h4 $11) 20. Qd2 $16 {[%emt 0:00:15]} Nc6 {[%emt 0:00:07]} 21. f4 {[%emt 0:00:07]} Nxd4 {[%emt 0:00:10]} (21... h4 $14) 22. Bxd4 {[%emt 0:00:01]} (22. Qxd4 $2 {too greedy.} Nxe4 23. Nxe4 Bxd4 $19) 22... Bc6 {[%emt 0:00:02][%cal Rc6e4]} 23. Rae1 {[%emt 0:00:02] White is more active.} Bd7 {[%emt 0:00:20]} 24. f5 {[%emt 0:00:03]} c5 $2 {[%emt 0:00:25]} (24... gxf5 $16 25. Rd1 Qd8) 25. Bxf6 $18 {[%emt 0:00:05]} Bxf6 {[%emt 0:00:01]} 26. fxg6 {[%emt 0:00:05][%cal Od2h6]} Bxc3 {[%emt 0:00:08]} 27. gxf7+ {[%emt 0:00:01]} (27. Qh6 $142 fxg6 28. Qxg6+ Bg7 29. Rf7 Kh8 30. Qxg7#) 27... Kh7 {[%emt 0:00:03]} 28. fxe8=Q {[%emt 0:00:12]} Qxe8 {[%emt 0:00:05]} 29. Qxc3 {[%emt 0:00:02]} Be6 {[%emt 0:00:04]} 30. Rf6 {[%emt 0:00:02] e5 would kill now.} Qg8 {[%emt 0:00:04]} 31. Qe3 {[%emt 0:00:04][%csl Gf6][%cal Re3h6]} Rf8 {[%emt 0:00:04]} 32. Qh6# {[%emt 0:00:01]} 1-0

[Event "European Women Blitz-ch 2024"]
[Site "Monaco"]
[Date "2025.01.10"]
[Round "1.16"]
[White "Datuashvili, Nona"]
[Black "Javakhishvili, Lela"]
[Result "0-1"]
[Annotator "TA"]
[ECO "B03"]
[WhiteElo "2001"]
[BlackElo "2426"]
[PlyCount "72"]
[EventDate "2025.01.06"]
[EventType "swiss"]
[EventCountry "MNC"]
[SourceTitle "playchess.com"]
[Source "ChessBase"]
[SourceQuality "1"]
[TimeControl "180+2"]

{[%evp 19,72,32,34,40,29,23,16,-95,-90,-201,-210,-196,-197,-199,-192,-193,-175,-213,-90,-59,-35,-39,-18,-23,0,-9,-23,-129,0,-56,-57,-139,-111,-465,-443,-432,-245,-446,-194,-179,-184,-470,-475,-477,-485,-479,-472,-704,-692,-692,-688,-749,-748,-725,-716]} 1. e4 {[%emt 0:00:31][%cal Be2e4,Be4e5][%mdl 32]} Nf6 {[%emt 0:00:02]} 2. e5 {[%emt 0:00:04]} Nd5 {[%emt 0:00:02]} 3. d4 {[%emt 0:00:00]} d6 {[%emt 0:00:01]} 4. c4 {[%emt 0:00:01]} Nb6 {[%emt 0:00:01]} 5. exd6 {[%emt 0:00:01]} exd6 {[%emt 0:00:01]} 6. Nc3 {[%emt 0:00:01]} Be7 {[%emt 0:00:02]} 7. h3 {[%emt 0:00:01]} O-O {[%emt 0:00:04]} 8. Nf3 {[%emt 0:00:01]} Bf6 {[%emt 0:00:01]} 9. Bd3 {[%emt 0:00:01]} Nc6 {[%emt 0:00:02]} 10. O-O {[%emt 0:00:03]} Re8 {[%emt 0:00:11]} 11. Be3 {[%emt 0:00:03]} d5 {[%emt 0:00:04]} 12. c5 {[%emt 0:00:05]} Nc4 {[%emt 0:00:01]} 13. Qc2 {[%emt 0:00:47]} (13. Bc1 $11) 13... Nxe3 $17 {[%emt 0:00:22]} 14. Bxh7+ {[%emt 0:00:09]} (14. fxe3 $17 Rxe3 15. Qd2) 14... Kh8 $19 {[%emt 0:00:07]} 15. fxe3 {[%emt 0:00:01]} Rxe3 {[%emt 0:00:07]} 16. Ne5 {[%emt 0:00:08]} Nxe5 {[%emt 0:00:19]} (16... Nxd4 17. Nxf7#) 17. dxe5 {[%emt 0:00:01]} Rxe5 {[%emt 0:00:04]} 18. Rad1 {[%emt 0:00:16]} c6 {[%emt 0:00:28]} (18... Be6 $1 $19 {is more deadly.} 19. Bd3 c6) 19. Ne4 $17 {[%emt 0:00:05]} Qe7 {[%emt 0:00:22]} (19... Be7 $5 20. Rxf7 Be6 $15 (20... Kxh7 21. Nf6+ Kh6 22. Qh7+ Kg5 23. Qh5+ Kf4 24. Nxd5+ Kg3 25. Rf3#)) 20. Nxf6 {[%emt 0:00:24]} gxf6 {[%emt 0:00:02]} 21. Rd4 {[%emt 0:00:12]} Re2 {[%emt 0:00:09]} (21... Rh5 {simplifies} 22. Bd3 Qe3+ 23. Qf2 Qxf2+ 24. Rxf2 Kg7) 22. Qd3 {[%emt 0:00:09]} (22. Qc3 $5) 22... Re3 $36 {[%emt 0:00:14][%mdl 2048] Black has good play.} (22... Rxb2 $2 23. Qg3 Qf8 24. Rh4 $18 (24. Rxf6 Qg7 $16)) (22... Qxc5 23. Kh1 Kg7 (23... Rxb2 $2 24. Qg3 $18) 24. Qg3+ Kf8 25. Rdf4 $18) 23. Qc2 {[%emt 0:00:05] [#]} (23. Qd1 $1 $11 {was the only way to keep the balance.} Qe5 (23... Kxh7 24. Rh4+ Kg7 25. Qh5 f5 26. Qh8+ Kg6 27. Qh6#) 24. Bc2) 23... Re1 {[%emt 0:00:10]} ({Black should play} 23... Qe5 $1 $17 {[%cal Re5d4]} 24. Rdf4 Bxh3) 24. Rh4 {[%emt 0:00:07]} (24. Qf2 $11 Rxf1+ 25. Kxf1) 24... Qe3+ $15 {[%emt 0:00:06]} 25. Kh2 {[%emt 0:00:08]} ({White should try} 25. Qf2 $15 Qxf2+ 26. Kxf2 Rxf1+ 27. Kxf1) 25... Kg7 {[%emt 0:00:18] Really sharp!} 26. Rff4 $2 {[%emt 0:00:07][%mdl 8192]} (26. Qf2 $17 {is more resistant.} Qe5+ 27. Kg1 Rxf1+ 28. Kxf1) 26... Qg1+ $19 {[%emt 0:00:03]} 27. Kg3 {[%emt 0:00:01]} Re3+ {[%emt 0:00:01]} 28. Rf3 {[%emt 0:00:02]} Qe1+ {[%emt 0:00:02]} (28... Re5 $142 {aiming for ...Rg5+.} 29. Rf2 Rg5+ 30. Rg4 Bxg4 31. hxg4 Re5) 29. Qf2 {[%emt 0:00:10]} Rxf3+ {[%emt 0:00:04]} 30. gxf3 $2 {[%emt 0:00:02]} (30. Kxf3 Qxf2+ 31. Kxf2) 30... Qxf2+ {[%emt 0:00:02]} 31. Kxf2 {[%emt 0:00:01][%mdl 4096] Endgame KRB-KRB. Black is a pawn up.} f5 {[%emt 0:00:03]} 32. Rh5 {[%emt 0:00:07] [#]} Kf6 $1 {[%emt 0:00:01]} 33. Rh6+ {[%emt 0:00:02]} (33. h4 $142 Be6 34. Kf1) 33... Kg5 {[%emt 0:00:06]} 34. Rd6 {[%emt 0:00:01]} Be6 {[%emt 0:00:00]} 35. Kg3 {[%emt 0:00:07]} Rh8 {[%emt 0:00:05]} 36. f4+ {[%emt 0:00:03]} Kf6 {[%emt 0:00:01]} 0-1

[Event "European Women Blitz-ch 2024"]
[Site "Monaco"]
[Date "2025.01.10"]
[Round "1.17"]
[White "Papp, Petra"]
[Black "Zvereva, Marija"]
[Result "1-0"]
[Annotator "TA"]
[ECO "D02"]
[WhiteElo "2235"]
[BlackElo "2001"]
[PlyCount "49"]
[EventDate "2025.01.06"]
[EventType "swiss"]
[EventCountry "MNC"]
[SourceTitle "playchess.com"]
[Source "ChessBase"]
[SourceQuality "1"]
[TimeControl "180+2"]

{[%evp 17,49,19,69,0,0,-13,-10,-17,-13,-19,-11,-8,-3,-47,-36,-27,-44,-37,297,219,215,218,396,208,643,622,620,559,556,525,1100,733,1041,943]} 1. d4 {[%emt 0:00:03]} Nf6 {[%emt 0:00:58]} 2. Nf3 {[%emt 0:00:02]} e6 {[%emt 0:00:19]} 3. Bf4 {[%emt 0:00:01]} Be7 {[%emt 0:00:23]} 4. e3 {[%emt 0:00:02]} d5 {[%emt 0:00:04]} 5. h3 {[%emt 0:00:10]} O-O {[%emt 0:00:01]} 6. Nbd2 {[%emt 0:00:01]} c5 {[%emt 0:00:02]} 7. c3 {[%emt 0:00:01]} Nc6 {[%emt 0:00:01]} 8. Bd3 {[%emt 0:00:01]} a6 {[%emt 0:00:13]} 9. O-O {[%emt 0:00:06]} b5 {[%emt 0:00:01]} (9... b6 $11) 10. Ne5 {[%emt 0:00:04] White is more active.} ({Better is} 10. dxc5 $14 Bxc5 11. e4) 10... Bb7 $11 {[%emt 0:00:04]} 11. Bh2 {[%emt 0:00:13]} c4 {[%emt 0:00:01]} 12. Bc2 {[%emt 0:00:02]} b4 {[%emt 0:00:01]} 13. f4 {[%emt 0:00:26][%cal Bf2f4,Bf4f5][%mdl 32]} bxc3 {[%emt 0:00:11]} 14. bxc3 {[%emt 0:00:01]} Qa5 {[%emt 0:00:00]} 15. Rb1 {[%emt 0:00:07]} Nd8 $1 {[%emt 0:00:16][%cal Oa8a7]} 16. f5 {[%emt 0:00:21] Black must now prevent fxe6.} Qxc3 {[%emt 0:00:08]} 17. Rf3 {[%emt 0:00:01][%cal Od2c4]} Qa5 $2 {[%emt 0:00:42][%mdl 8192] [#]} (17... exf5 $15 {stays ahead.} 18. Nf1 Qa5) 18. Rxb7 $1 {[%emt 0:00:12][%mdl 512]} Nxb7 {[%emt 0:00:01] [#]} 19. Nc6 $1 {[%emt 0:00:01][%csl LRa5,LRe7]} Qa3 $2 {[%emt 0:00:03]} (19... Qxa2 20. Nxe7+ Kh8) 20. e4 {[%emt 0:00:03]} (20. Nb1 $142 Qxa2 21. Nxe7+ Kh8 22. Be5) 20... dxe4 $2 {[%emt 0:00:02]} (20... Qb2) 21. Rxa3 $18 {[%emt 0:00:02]} Bxa3 {[%emt 0:00:02]} 22. Nxe4 {[%emt 0:00:03]} Nxe4 {[%emt 0:00:04]} 23. Bxe4 {[%emt 0:00:01]} Rac8 {[%emt 0:00:01]} 24. Qg4 {[%emt 0:00:19]} Nd6 {[%emt 0:00:02]} 25. Ne7+ {[%emt 0:00:11]} 1-0

[Event "European Women Blitz-ch 2024"]
[Site "Monaco"]
[Date "2025.01.10"]
[Round "1.18"]
[White "Stangl, Anita"]
[Black "Kulon, Klaudia"]
[Result "0-1"]
[Annotator "TA"]
[ECO "C59"]
[WhiteElo "2027"]
[BlackElo "2393"]
[PlyCount "100"]
[EventDate "2025.01.06"]
[EventType "swiss"]
[EventCountry "MNC"]
[SourceTitle "playchess.com"]
[Source "ChessBase"]
[SourceQuality "1"]
[TimeControl "180+2"]

{[%evp 27,100,0,0,0,0,-11,-12,-105,-110,-119,-35,-43,-13,-62,-31,-156,0,-255,-256,-212,-120,-308,-177,-258,-250,-361,-368,-336,-236,-382,-284,-270,-214,-218,-197,-197,-214,-445,-212,-241,-205,-404,-42,-115,-93,-92,-53,-125,-75,-81,-87,-114,-96,-118,-78,-159,-197,-297,-228,-222,-233,-331,-308,-412,-412,-472,-479,-455,-433,-514,-487,-502,-496,-1304,-1304]} 1. e4 {[%emt 0:00:02]} e5 {[%emt 0:00:01]} 2. Nf3 {[%emt 0:00:00]} Nc6 {[%emt 0:00:00]} 3. Bc4 {[%emt 0:03:06]} Nf6 4. Ng5 {[%emt 0:00:00]} d5 {[%emt 0:00:04]} 5. exd5 {[%emt 0:00:00]} Na5 {[%emt 0:00:00]} 6. Bb5+ {[%emt 0:00:00]} c6 {[%emt 0:00:01]} 7. dxc6 {[%emt 0:00:00]} bxc6 {[%emt 0:00:01]} 8. Be2 {[%emt 0:00:00]} h6 {[%emt 0:00:03]} 9. Nf3 {[%emt 0:00:00]} e4 {[%emt 0:00:01]} 10. Ne5 {[%emt 0:00:00]} Bd6 {[%emt 0:00:04]} 11. d4 {[%emt 0:00:00]} exd3 {[%emt 0:00:02]} 12. Nxd3 {[%emt 0:00:00]} Qc7 {[%emt 0:00:00]} 13. h3 {[%emt 0:00:00]} O-O {[%emt 0:00:02]} 14. O-O {[%emt 0:00:00]} c5 {[%emt 0:00:04]} 15. Nc3 {[%emt 0:00:00]} Rb8 {[%emt 0:00:01]} 16. Ne1 {[%emt 0:00:00]} Rd8 {[%emt 0:00:05]} 17. Kh1 {[%emt 0:00:00]} (17. Bd2 $1 $11) 17... Be5 $17 {[%emt 0:00:08]} 18. Bd2 {[%emt 0:00:00] [#]} Rxb2 {[%emt 0:00:02] Black is much more active. The white rooks are passive.} (18... Bxh3 $1 $17 {...Be6 would now be deadly.} 19. Nf3 (19. gxh3 Qd7 $17) 19... Bxc3 20. bxc3 Bg4) 19. Qc1 $1 $15 {[%emt 0:00:00]} Rb8 {[%emt 0:00:04] Black wants to play ...Bb7.} 20. Nd3 {[%emt 0:00:00]} (20. Nf3 $11) 20... Bd6 {[%emt 0:00:07]} 21. Be3 {[%emt 0:00:00]} (21. Bf3 $15) 21... Nc4 $2 {[%emt 0:00:04]} (21... c4 $17 22. Ne1 Be5) 22. a4 $2 {[%emt 0:00:00][%mdl 8192]} (22. Bxh6 $1 $11 {and White is okay.} gxh6 23. Qxh6) 22... Nxe3 $19 {[%emt 0:00:09]} 23. Qxe3 {[%emt 0:00:00]} a6 {[%emt 0:00:01] Prevents Nb5} (23... c4 $19 24. Nb5 Rxb5 25. axb5 cxd3 26. Bxd3 Bc5) 24. Bf3 $2 {[%emt 0:00:00]} (24. f4 $17) 24... Bf5 {[%emt 0:00:10]} (24... c4 $142 25. Nc1 Bf5) 25. Rab1 {[%emt 0:00:00] [#]} (25. Nd5 Nxd5 26. Bxd5) 25... c4 $1 {[%emt 0:00:04]} 26. Ne1 {[%emt 0:00:00]} (26. Rxb8 $142 Rxb8 27. Ne1) 26... Rxb1 {[%emt 0:00:07]} 27. Nxb1 {[%emt 0:00:00]} Bc5 {[%emt 0:00:01] A strong pair of Bishops.} 28. Qc1 {[%emt 0:00:00]} (28. Qe2 {was the only chance.}) 28... Qd7 {[%emt 0:00:16]} 29. Qf4 {[%emt 0:00:12]} Be6 {[%emt 0:00:09]} 30. Nc3 {[%emt 0:00:14]} Bb4 {[%emt 0:00:06]} 31. Ne4 {[%emt 0:00:06]} Nd5 {[%emt 0:02:07]} (31... Qxa4 32. Nxf6+ gxf6 33. Qxf6 $17) 32. Qh4 $2 {[%emt 0:00:09]} (32. Qe5) 32... Re8 {[%emt 0:00:00]} (32... Be7 $142 33. Qg3 f5 (33... Qxa4 $2 34. Qe5 $19)) 33. Ng3 {[%emt 0:00:19] White is weak on the dark squares} Qxa4 {[%emt 0:00:00]} 34. Qxc4 $2 {[%emt 0:00:00]} (34. Bxd5 {was worth a try.} Bxd5 35. Qd4) 34... Nf6 $2 {[%emt 0:00:00]} (34... Ne3 $1 $19 35. Qd4 Nxf1) 35. Qh4 {[%emt 0:00:00]} (35. Qd4 $15 Qb5 36. Be2) 35... Qb5 {[%emt 0:00:00]} 36. Nd3 {[%emt 0:00:00]} Be7 {[%emt 0:00:00]} 37. Qf4 {[%emt 0:00:01]} (37. Ne2 $15) 37... Nd5 {[%emt 0:00:00]} (37... Rc8 $142 38. Rd1 Qg5 (38... Rxc2 39. Qd4 $17)) 38. Qe4 {[%emt 0:00:05]} Rc8 {[%emt 0:00:00]} 39. Ne5 {[%emt 0:00:02] Black must now prevent c4. Prevents Rc4.} Nf6 {[%emt 0:00:00]} 40. Qe2 {[%emt 0:00:02]} Qxe2 {[%emt 0:00:00]} 41. Bxe2 {[%emt 0:00:01]} ({Better is} 41. Nxe2 Bd5 (41... Rxc2 42. Nd4 $15) 42. c3) 41... a5 $17 {[%emt 0:00:00][%cal Oa5a4]} ({Much less strong is} 41... Rxc2 42. Bxa6 g6 43. Bd3 $17) 42. c4 {[%emt 0:00:01]} (42. Ra1 $142) 42... Bd6 {[%emt 0:00:00]} 43. f4 {[%emt 0:00:01]} a4 {[%emt 0:00:00]} 44. Ra1 {[%emt 0:00:01]} (44. Rd1 $142 Bc7 45. Ra1) 44... a3 $19 {[%emt 0:00:26]} 45. Nf3 {[%emt 0:00:07]} Bxf4 {[%emt 0:00:00]} 46. Nf1 {[%emt 0:00:02]} Bd6 {[%emt 0:00:00][%cal Of6e4]} (46... Bxc4 47. Bxc4 Rxc4 48. Rxa3 $19) 47. N1d2 {[%emt 0:00:02]} Bb4 {[%emt 0:00:00]} 48. Nb3 {[%emt 0:00:01]} Bxc4 {[%emt 0:00:00]} 49. Rc1 {[%emt 0:00:02]} Be6 {[%emt 0:00:00]} 50. Ra1 {[%emt 0:00:01]} (50. Rxc8+ $142 Bxc8 51. Nfd4) 50... Bxb3 {[%emt 0:00:00]} 0-1

[Event "European Women Blitz-ch 2024"]
[Site "Monaco"]
[Date "2025.01.10"]
[Round "2.1"]
[White "Kosteniuk, Alexandra"]
[Black "Gaponenko, Inna"]
[Result "0-1"]
[Annotator "TA"]
[ECO "B08"]
[WhiteElo "2484"]
[BlackElo "2346"]
[PlyCount "85"]
[EventDate "2025.01.06"]
[EventType "swiss"]
[EventCountry "MNC"]
[SourceTitle "playchess.com"]
[Source "ChessBase"]
[SourceQuality "1"]
[TimeControl "180+2"]

{[%evp 14,85,0,2,18,13,8,21,35,7,7,14,12,17,6,-11,-10,-21,0,0,-15,0,0,0,25,12,30,0,0,0,-15,-141,-112,-121,-133,-226,-55,-597,-593,-699,-702,-696,-702,-650,-605,-678,-670,-748,-683,-792,-725,-887,-762,-1118,-1086,-29975,-29976,-29980,-29981,-29983,-29984,-29977,-983,-958,-958,-29979,-29979,-6191,-1823,-5569,-5501,-1202,-1083,-29972]} 1. e4 {[%emt 0:00:01]} c5 {[%emt 0:00:01]} 2. d4 {[%emt 0:00:01]} cxd4 {[%emt 0:00:01]} 3. Qxd4 {[%emt 0:00:02]} Nc6 {[%emt 0:00:02]} 4. Qd3 {[%emt 0:00:00]} g6 {[%emt 0:00:04]} 5. Nc3 {[%emt 0:00:01]} Bg7 {[%emt 0:00:01]} 6. Nf3 {[%emt 0:00:01]} d6 {[%emt 0:00:01]} 7. Be2 {[%emt 0:00:01]} Nf6 {[%emt 0:00:05]} 8. O-O {[%emt 0:00:02]} Bg4 {[%emt 0:00:12]} 9. Nd5 {[%emt 0:00:02]} O-O {[%emt 0:00:23]} 10. c3 {[%emt 0:00:03]} Rc8 {[%emt 0:00:06]} 11. Bg5 {[%emt 0:00:08]} e6 {[%emt 0:00:57]} 12. Nxf6+ {[%emt 0:00:19]} Bxf6 {[%emt 0:00:01]} 13. Bxf6 {[%emt 0:00:02]} Qxf6 {[%emt 0:00:02]} 14. Qxd6 {[%emt 0:00:01]} Bxf3 {[%emt 0:00:34]} 15. Bxf3 {[%emt 0:00:03]} Ne5 {[%emt 0:00:01][%cal Of8d8,Bc6e5,Be5d7,Bd7c5][%mdl 32]} 16. Be2 {[%emt 0:00:28]} Rcd8 {[%emt 0:00:24]} 17. Qb4 {[%emt 0:00:01][%cal Oa1d1]} Rd2 {[%emt 0:00:01]} 18. Rae1 {[%emt 0:00:05]} b6 {[%emt 0:00:10]} 19. f4 {[%emt 0:00:08]} Nd7 {[%emt 0:00:12]} 20. Bb5 {[%emt 0:01:36]} Nc5 {[%emt 0:00:02]} 21. Re2 {[%emt 0:00:02]} Rfd8 {[%emt 0:00:02]} 22. h3 {[%emt 0:00:14]} (22. g3 $11) 22... Rxe2 $17 {[%emt 0:00:02]} 23. Bxe2 {[%emt 0:00:01]} Rd2 {[%emt 0:00:01]} 24. Rf2 {[%emt 0:00:07]} (24. Qc4 $17 {might work better.}) 24... Qd8 $2 {[%emt 0:00:10]} (24... Qh4 $19 {and ...Nd3 would now be decisive} 25. Qc4 Rxb2) 25. e5 $2 {[%emt 0:00:07][%mdl 8192] [#]} ({Better is} 25. Bf1 $15) 25... Rxe2 $1 $19 {[%emt 0:00:06]} 26. Rxe2 {[%emt 0:00:01][%mdl 4096] Endgame Black must now prevent Qd4. KQR-KQN} (26. Qd4 Re1+) 26... Qd1+ {[%emt 0:00:01]} 27. Kh2 {[%emt 0:00:04]} Qxe2 {[%emt 0:00:01]} 28. Qd4 {[%emt 0:00:00]} Qd3 {[%emt 0:00:02]} ({Not} 28... Qxb2 29. Qd8+ Kg7 30. Qf6+ Kg8 (30... Kh6 31. Qh4+ Kg7 32. Qf6+ Kg8 33. Qd8+ Kg7 34. Qf6+ $11) 31. Qd8+ Kg7 32. Qf6+ Kg8 33. Qd8+ $11) 29. Qf2 {[%emt 0:00:03]} Ne4 {[%emt 0:00:01]} 30. Qh4 {[%emt 0:00:02]} Kg7 {[%emt 0:00:16]} 31. a4 {[%emt 0:00:01]} a5 {[%emt 0:00:00]} 32. Qg4 {[%emt 0:00:13]} h6 {[%emt 0:00:00]} 33. Qh4 {[%emt 0:00:03]} Qe3 {[%emt 0:00:00]} 34. Qg4 {[%emt 0:00:02]} Qe1 {[%emt 0:00:00]} 35. Qf3 {[%emt 0:00:01]} Nd2 {[%emt 0:00:03]} 36. Qd3 {[%emt 0:00:05]} Nf1+ {[%emt 0:00:02]} 37. Kg1 {[%emt 0:00:01]} Ng3+ {[%emt 0:00:02]} (37... Ne3+ $142 38. Kh2 Qf2 39. Qxe3 Qxe3 40. Kh1 Qc1+ (40... Qxf4 $2 41. h4 $19) 41. Kh2 Qxf4+ 42. Kg1 Qxa4 (42... Qxe5 $2 43. Kf2 $19) 43. h4 Qa1+ (43... Qxh4 $2 44. Kf1 $19) 44. Kh2 Qxb2 45. c4 a4 (45... Qxe5+ {gets mated.} 46. Kh3 a4 47. g3 a3 48. Kg2 a2 49. g4 a1=Q 50. g5 Qa2+ 51. Kh3 Qeh2+ 52. Kg4 Qag2#) 46. h5 g5 (46... gxh5 47. Kg3 a3 48. Kf3 a2 49. g4 a1=Q 50. gxh5 Qh1+ 51. Kg4 Qhg2+ 52. Kh4 Qbf2#) (46... Qxe5+ 47. g3 gxh5 48. Kg2 Qe2+ 49. Kh3 Qf2 50. c5 bxc5 51. g4 h4 52. g5 Qg3#) 47. c5 a3 (47... bxc5 48. Kh3 a3 49. g4 a2 50. Kg3 a1=Q 51. Kf3 Qf1+ 52. Kg3 Qxe5#) (47... Qxe5+ 48. Kh3 a3 49. g3 a2 50. g4 a1=Q 51. Kg2 Qe2+ 52. Kh3 Qc3#) 48. cxb6 a2 (48... Qxe5+ 49. g3 g4 50. Kg1 Qb2 51. Kh1 a2 52. Kg1 a1=Q#) 49. b7 Qf2 (49... a1=B 50. b8=Q Qxb8 51. Kg3 Bd4 52. Kh3 Qxe5 53. g3 g4+ 54. Kxg4 Qf5+ 55. Kh4 Bf6#) 50. b8=Q Qh4+ (50... a1=B $2 51. Qd6 $19) 51. Kg1 a1=Q+ 52. Qb1 Qxb1#) 38. Kh2 {[%emt 0:00:00]} Nf5 {[%emt 0:00:01]} 39. b4 {[%emt 0:00:03]} axb4 {[%emt 0:00:01]} 40. cxb4 {[%emt 0:00:00]} Qxb4 {[%emt 0:00:01]} (40... Ne3 $142 41. Qd8 Qf2 (41... Qxb4 $2 42. Qf6+ Kg8 43. Qd8+ Kh7 44. Qf6 $19) 42. Qf6+ Kg8 43. Qd8+ Kh7 44. Qa8 Nf1+ (44... Qxf4+ $2 45. Kh1 $19) 45. Kh1 Ng3+ (45... Qxf4 $2 46. Kg1 $19) 46. Kh2 Ne2 (46... Qxf4 $2 47. Qf3 $19) 47. Qh8+ Kxh8 48. Kh1 Qg1#) 41. Qf3 {[%emt 0:00:04]} Qxa4 {[%emt 0:00:02]} 42. g4 {[%emt 0:00:00]} Ne7 {[%emt 0:00:01]} 43. Qb7 {[%emt 0:00:02]} 0-1